{"text_format":"3","workbook":"xlsx","n_sheets":4,"sheets":["بدء","موازنة حفل الزواج","الملابس-الاستقبال-الموسيقى-الصو","زينة-زهور-هدايا-تكاليف السفر"],"not_rendered":{"charts":1,"defined_names":22},"read":"whole","date_system":"1900"}

{"sheet":"بدء","index":0,"n_rows":7,"n_cols":2,"rows_kept":7}
[null,"حول هذا القالب"]
[null,"استخدم هذا القالب لمتابعة مصروفات حفل الزواج."]
[null,"أدخل التكاليف المقدرة والفعلية المستحقة على الفئات المختلفة في أوراق عمل منفصلة."]
[null,"تم تحديث ملخص موازنة حفل الزواج والمخطط تلقائياً لأجلك."]
[null,"ملاحظة: "]
[null,"تم توفير إرشادات إضافية في العمود A في كل ورقة عمل. تم إخفاء هذا النص عن قصد. لإزالة النص، حدد العمود A، ثم حدد \"حذف\". لإظهار النص، حدد العمود A، ثم قم بتغيير لون الخط."]
[null,"للتعرف على المزيد حول الجداول، اضغط على SHIFT ثم F10 داخل جدول، وحدد خيار \"جدول\"، ثم حدد \"النص البديل\"."]

{"sheet":"موازنة حفل الزواج","index":1,"n_rows":19,"n_cols":6,"rows_kept":19,"merged":[[2,2,4,5],[18,2,42,5]]}
["قم بإنشاء \"موازنة حفل الزواج\" في ورقة العمل هذه. أدخل التفاصيل في الجداول الموجودة بورقة عمل \"الملابس\"-\"الاستقبال\"-\"الموسيقى\"-\"الصور\" وورقة عمل \"الديكورات\"-\"الزهور\"-\"المخطط\" في ورقة العمل الحالية. توجد تعليمات مفيدة حول كيفية استخدام ورقة العمل هذه في الخلايا الموجودة في هذا العمود. توجد تسمية \"تاريخ حفل الزواج\" في الخلية C1.",null,"تاريخ الزواج:"]
["أدخل \"تاريخ الزواج\" في الخلية C2. يتم حساب الأيام المتبقية تلقائياً في الخلية E2.",null,{"$f":"TODAY()+365","v":"2019-12-05"},"الأيام المتبقية:",{"$f":"C2-TODAY()","v":365}]
["يوجد عنوان ورقة العمل هذه في الخلية C3. توجد الإرشادات التالية في الخلية A6.",null,"ملخص موازنة حفل الزواج"]
[]
[]
["يتم تحديث جدول ملخص الموازنة تلقائياً بدءاً من الخليةC6. توجد الإرشادات التالية في الخلية A19.",null,"الفئة","المُقدر","الفعلي","الزائد/الناقص"]
[null,null,"الملابس",{"$f":"الإجمالي_المقدر_للملابس","v":{"v":9490,"d":"9,490.00"}},{"$f":"الإجمالي_الحقيقي_للملابس","v":{"v":9770,"d":"9,770.00"}},{"$f":"ملخص_الموازنة[[#This Row],[المُقدر]]-ملخص_الموازنة[[#This Row],[الفعلي]]","v":{"v":-280,"d":"-280.00"}}]
[null,null,"حفل الاستقبال",{"$f":"الإجمالي_المقدر_للاستقبال","v":{"v":1050,"d":"1,050.00"}},{"$f":"الإجمالي_الحقيقي_للاستقبال","v":{"v":928,"d":"928.00"}},{"$f":"ملخص_الموازنة[[#This Row],[المُقدر]]-ملخص_الموازنة[[#This Row],[الفعلي]]","v":{"v":122,"d":"122.00"}}]
[null,null,"الموسيقى",{"$f":"الإجمالي_المقدر_للموسيقى","v":{"v":600,"d":"600.00"}},{"$f":"الإجمالي_الحقيقي_للموسيقى","v":{"v":400,"d":"400.00"}},{"$f":"ملخص_الموازنة[[#This Row],[المُقدر]]-ملخص_الموازنة[[#This Row],[الفعلي]]","v":{"v":200,"d":"200.00"}}]
[null,null,"الطباعة",{"$f":"الإجمالي_المقدر_لطباعة_القرطاسية","v":{"v":935,"d":"935.00"}},{"$f":"الإجمالي_الحقيقي_لطباعة_القرطاسية","v":{"v":870,"d":"870.00"}},{"$f":"ملخص_الموازنة[[#This Row],[المُقدر]]-ملخص_الموازنة[[#This Row],[الفعلي]]","v":{"v":65,"d":"65.00"}}]
[null,null,"التصوير",{"$f":"الإجمالي_المقدر_للصور","v":{"v":1625,"d":"1,625.00"}},{"$f":"الإجمالي_الحقيقي_للصور","v":{"v":1575,"d":"1,575.00"}},{"$f":"ملخص_الموازنة[[#This Row],[المُقدر]]-ملخص_الموازنة[[#This Row],[الفعلي]]","v":{"v":50,"d":"50.00"}}]
[null,null,"الديكورات",{"$f":"الإجمالي_المقدر_للديكورات","v":{"v":700,"d":"700.00"}},{"$f":"الإجمالي_الحقيقي_للديكورات","v":{"v":720,"d":"720.00"}},{"$f":"ملخص_الموازنة[[#This Row],[المُقدر]]-ملخص_الموازنة[[#This Row],[الفعلي]]","v":{"v":-20,"d":"-20.00"}}]
[null,null,"الزهور",{"$f":"الإجمالي_المقدر_للزهور","v":{"v":900,"d":"900.00"}},{"$f":"الإجمالي_الحقيقي_للزهور","v":{"v":850,"d":"850.00"}},{"$f":"ملخص_الموازنة[[#This Row],[المُقدر]]-ملخص_الموازنة[[#This Row],[الفعلي]]","v":{"v":50,"d":"50.00"}}]
[null,null,"الهدايا",{"$f":"الإجمالي_المقدر_للهدايا","v":{"v":1345,"d":"1,345.00"}},{"$f":"الإجمالي_الحقيقي_للهدايا","v":{"v":1075,"d":"1,075.00"}},{"$f":"ملخص_الموازنة[[#This Row],[المُقدر]]-ملخص_الموازنة[[#This Row],[الفعلي]]","v":{"v":270,"d":"270.00"}}]
[null,null,"السفر",{"$f":"الإجمالي_المقدر_لوسائل_النقل","v":{"v":100,"d":"100.00"}},{"$f":"الإجمالي_الحقيقي_لوسائل_النقل","v":{"v":165,"d":"165.00"}},{"$f":"ملخص_الموازنة[[#This Row],[المُقدر]]-ملخص_الموازنة[[#This Row],[الفعلي]]","v":{"v":-65,"d":"-65.00"}}]
[null,null,"غير ذلك",{"$f":"الإجمالي_المقدر_للمصروفات_الأخرى","v":{"v":885,"d":"885.00"}},{"$f":"الإجمالي_الحقيقي_للمصروفات_الأخرى","v":{"v":1021,"d":"1,021.00"}},{"$f":"ملخص_الموازنة[[#This Row],[المُقدر]]-ملخص_الموازنة[[#This Row],[الفعلي]]","v":{"v":-136,"d":"-136.00"}}]
[null,null,"إجمالي المصروفات",{"$f":"SUBTOTAL(109,ملخص_الموازنة[المُقدر])","v":{"v":17630,"d":"17,630.00"}},{"$f":"SUBTOTAL(109,ملخص_الموازنة[الفعلي])","v":{"v":17374,"d":"17,374.00"}},{"$f":"SUBTOTAL(109,ملخص_الموازنة[الزائد/الناقص])","v":{"v":256,"d":"256.00"}}]
[]
["يتم تحديث المخطط الدائري تلقائياً في الخلية C19.",null,"يوجد مخطط دائري يعرض النسب المئوية لمصروفات كل فئة في هذه الخلية."]

{"sheet":"الملابس-الاستقبال-الموسيقى-الصو","index":2,"n_rows":56,"n_cols":6,"rows_kept":56,"merged":[[16,1,16,4],[28,1,28,4],[29,1,29,4],[35,1,35,4],[48,1,48,4]]}
["أدخل التكاليف المقدرة والفعلية لكل فئة في الجداول ذات الصلة في ورقة العمل هذه. يتم احتساب المبلغ الزائد أو الناقص تلقائياً. توجد تسمية \"الملابس\" في الخلية الموجودة على اليسار. توجد تعليمات مفيدة حول كيفية استخدام ورقة العمل هذه في الخلايا الموجودة في هذا العمود. السهم لأسفل لبدء الاستخدام.","الملابس",{"$nulls":3}," "]
[" أدخل التفاصيل في تسمية الملابس بدءاً من الخلية الموجودة على اليسار. توجد الإرشادات التالية في الخلية A18.","الفئة","المُقدر","الفعلي","الزائد/الناقص"," "]
[null,"خاتم الخطبة",{"v":1500,"d":"1,500.00"},{"v":1500,"d":"1,500.00"},{"$f":"'الملابس-الاستقبال-الموسيقى-الصو'!$C3-'الملابس-الاستقبال-الموسيقى-الصو'!$D3","v":{"v":0,"d":"0.00"}}]
[null,"الزوج 1 - خاتم",{"v":2000,"d":"2,000.00"},{"v":2300,"d":"2,300.00"},{"$f":"'الملابس-الاستقبال-الموسيقى-الصو'!$C4-'الملابس-الاستقبال-الموسيقى-الصو'!$D4","v":{"v":-300,"d":"-300.00 "}}]
[null,"الزوج 1 - ثوب الزفاف/بدلة",{"v":3000,"d":"3,000.00"},{"v":2750,"d":"2,750.00"},{"$f":"'الملابس-الاستقبال-الموسيقى-الصو'!$C5-'الملابس-الاستقبال-الموسيقى-الصو'!$D5","v":{"v":250,"d":"250.00"}}]
[null,"الزوج 1 - طرحة الزفاف/غطاء الرأس",{"v":500,"d":"500.00"},{"v":500,"d":"500.00"},{"$f":"'الملابس-الاستقبال-الموسيقى-الصو'!$C6-'الملابس-الاستقبال-الموسيقى-الصو'!$D6","v":{"v":0,"d":"0.00"}}]
[null,"الزوج 1 - حذاء",{"v":350,"d":"350.00"},{"v":300,"d":"300.00"},{"$f":"'الملابس-الاستقبال-الموسيقى-الصو'!$C7-'الملابس-الاستقبال-الموسيقى-الصو'!$D7","v":{"v":50,"d":"50.00"}}]
[null,"الزوج 1 - مجوهرات",{"v":400,"d":"400.00"},{"v":550,"d":"550.00"},{"$f":"'الملابس-الاستقبال-الموسيقى-الصو'!$C8-'الملابس-الاستقبال-الموسيقى-الصو'!$D8","v":{"v":-150,"d":"-150.00 "}}]
[null,"الزوج 1 - جوارب طويلة",{"v":20,"d":"20.00"},{"v":20,"d":"20.00"},{"$f":"'الملابس-الاستقبال-الموسيقى-الصو'!$C9-'الملابس-الاستقبال-الموسيقى-الصو'!$D9","v":{"v":0,"d":"0.00"}}]
[null,"الزوج 2 - خاتم",{"v":300,"d":"300.00"},{"v":250,"d":"250.00"},{"$f":"'الملابس-الاستقبال-الموسيقى-الصو'!$C10-'الملابس-الاستقبال-الموسيقى-الصو'!$D10","v":{"v":50,"d":"50.00"}}]
[null,"الزوج 2 - ثوب الزفاف/بدلة",{"v":300,"d":"300.00"},{"v":350,"d":"350.00"},{"$f":"'الملابس-الاستقبال-الموسيقى-الصو'!$C11-'الملابس-الاستقبال-الموسيقى-الصو'!$D11","v":{"v":-50,"d":"-50.00 "}}]
[null,"الزوج 2 - طرحة الزفاف/غطاء الرأس",{"v":500,"d":"500.00"},{"v":500,"d":"500.00"},{"$f":"'الملابس-الاستقبال-الموسيقى-الصو'!$C12-'الملابس-الاستقبال-الموسيقى-الصو'!$D12","v":{"v":0,"d":"0.00"}}]
[null,"الزوج 2 - حذاء",{"v":200,"d":"200.00"},{"v":175,"d":"175.00"},{"$f":"'الملابس-الاستقبال-الموسيقى-الصو'!$C13-'الملابس-الاستقبال-الموسيقى-الصو'!$D13","v":{"v":25,"d":"25.00"}}]
[null,"الزوج 2 - مجوهرات",{"v":400,"d":"400.00"},{"v":550,"d":"550.00"},{"$f":"'الملابس-الاستقبال-الموسيقى-الصو'!$C14-'الملابس-الاستقبال-الموسيقى-الصو'!$D14","v":{"v":-150,"d":"-150.00 "}}]
[null,"الزوج 2 - جوارب طويلة",{"v":20,"d":"20.00"},{"v":25,"d":"25.00"},{"$f":"'الملابس-الاستقبال-الموسيقى-الصو'!$C15-'الملابس-الاستقبال-الموسيقى-الصو'!$D15","v":{"v":-5,"d":"-5.00 "}}]
[null,"إجمالي الملابس",{"$f":"SUBTOTAL(109,الملابس[المُقدر])","v":{"v":9490,"d":"9,490.00"}},{"$f":"SUBTOTAL(109,الملابس[الفعلي])","v":{"v":9770,"d":"9,770.00"}},{"$f":"SUBTOTAL(109,الملابس[الزائد/الناقص])","v":{"v":-280,"d":"-280.00 "}}]
[]
["توجد تسمية حفل الاستقبال في الخلية الموجودة على اليسار.","حفل الاستقبال*"]
["أدخل تكاليف حفل الاستقبال، باستثناء تكاليف الترفيه والديكورات في جدول بدءاً من الخلية الموجودة على اليسار. توجد الإرشادات التالية في الخلية A31.","الفئة","المُقدر","الفعلي","الزائد/الناقص"]
[null,"رسوم القاعة/الغرفة",{"v":200,"d":"200.00"},{"v":150,"d":"150.00"},{"$f":"'الملابس-الاستقبال-الموسيقى-الصو'!$C20-'الملابس-الاستقبال-الموسيقى-الصو'!$D20","v":{"v":50,"d":"50.00"}}]
[null,"الطاولات والكراسي",{"v":100,"d":"100.00"},{"v":50,"d":"50.00"},{"$f":"'الملابس-الاستقبال-الموسيقى-الصو'!$C21-'الملابس-الاستقبال-الموسيقى-الصو'!$D21","v":{"v":50,"d":"50.00"}}]
[null,"الطعام",{"v":0,"d":"0.00"},{"v":0,"d":"0.00"},{"$f":"'الملابس-الاستقبال-الموسيقى-الصو'!$C22-'الملابس-الاستقبال-الموسيقى-الصو'!$D22","v":{"v":0,"d":"0.00"}}]
[null,"المشروبات",{"v":0,"d":"0.00"},{"v":0,"d":"0.00"},{"$f":"'الملابس-الاستقبال-الموسيقى-الصو'!$C23-'الملابس-الاستقبال-الموسيقى-الصو'!$D23","v":{"v":0,"d":"0.00"}}]
[null,"المفارش",{"v":0,"d":"0.00"},{"v":0,"d":"0.00"},{"$f":"'الملابس-الاستقبال-الموسيقى-الصو'!$C24-'الملابس-الاستقبال-الموسيقى-الصو'!$D24","v":{"v":0,"d":"0.00"}}]
[null,"الكعكة",{"v":700,"d":"700.00"},{"v":700,"d":"700.00"},{"$f":"'الملابس-الاستقبال-الموسيقى-الصو'!$C25-'الملابس-الاستقبال-الموسيقى-الصو'!$D25","v":{"v":0,"d":"0.00"}}]
[null,"هدايا حفل الزواج",{"v":50,"d":"50.00"},{"v":28,"d":"28.00"},{"$f":"'الملابس-الاستقبال-الموسيقى-الصو'!$C26-'الملابس-الاستقبال-الموسيقى-الصو'!$D26","v":{"v":22,"d":"22.00"}}]
[null,"الموظفين والإكراميات",{"v":0,"d":"0.00"},{"v":0,"d":"0.00"},{"$f":"'الملابس-الاستقبال-الموسيقى-الصو'!$C27-'الملابس-الاستقبال-الموسيقى-الصو'!$D27","v":{"v":0,"d":"0.00"}}]
[null,"إجمالي حفل الاستقبال",{"$f":"SUBTOTAL(109,الاستقبال[المُقدر])","v":{"v":1050,"d":"1,050.00"}},{"$f":"SUBTOTAL(109,الاستقبال[الفعلي])","v":{"v":928,"d":"928.00"}},{"$f":"SUBTOTAL(109,الاستقبال[الزائد/الناقص])","v":{"v":122,"d":"122.00"}}]
[null,"* يستثني الترفيه والديكورات"]
[]
["توجد تسمية \"الموسيقى\" أو \"الترفيه\" في الخلية الموجودة على اليسار.","الموسيقى/الترفيه"]
["أدخل التفاصيل في جدول \"الموسيقى\" بدءاً من الخلية الموجودة على اليسار. توجد الإرشادات التالية في الخلية A37.","الفئة","المُقدر","الفعلي","الزائد/الناقص"]
[null,"العازفين لمراسم الحفل",{"v":400,"d":"400.00"},{"v":400,"d":"400.00"},{"$f":"'الملابس-الاستقبال-الموسيقى-الصو'!$C33-'الملابس-الاستقبال-الموسيقى-الصو'!$D33","v":{"v":0,"d":"0.00"}}]
[null,"الفرقة/العازفين لحفل الاستقبال",{"v":200,"d":"200.00"},{"v":0,"d":"0.00"},{"$f":"'الملابس-الاستقبال-الموسيقى-الصو'!$C34-'الملابس-الاستقبال-الموسيقى-الصو'!$D34","v":{"v":200,"d":"200.00"}}]
[null,"إجمالي الموسيقى/الترفيه",{"$f":"SUBTOTAL(109,الموسيقى[المُقدر])","v":{"v":600,"d":"600.00"}},{"$f":"SUBTOTAL(109,الموسيقى[الفعلي])","v":{"v":400,"d":"400.00"}},{"$f":"SUBTOTAL(109,الموسيقى[الزائد/الناقص])","v":{"v":200,"d":"200.00"}}]
[]
["توجد تسمية \"الطباعة\" أو \"القرطاسية\" في الخلية الموجودة على اليسار.","الطباعة/القرطاسية"]
["أدخل التفاصيل في جدول \"الطباعة\" بدءاً من الخلية الموجودة على اليسار. توجد الإرشادات التالية في الخلية A50.","الفئة","المُقدر","الفعلي","الزائد/الناقص"]
[null,"الدعوات",{"v":500,"d":"500.00"},{"v":450,"d":"450.00"},{"$f":"'الملابس-الاستقبال-الموسيقى-الصو'!$C39-'الملابس-الاستقبال-الموسيقى-الصو'!$D39","v":{"v":50,"d":"50.00"}}]
[null,"إعلانات الحفل",{"v":200,"d":"200.00"},{"v":175,"d":"175.00"},{"$f":"'الملابس-الاستقبال-الموسيقى-الصو'!$C40-'الملابس-الاستقبال-الموسيقى-الصو'!$D40","v":{"v":25,"d":"25.00"}}]
[null,"بطاقات الشكر",{"v":100,"d":"100.00"},{"v":100,"d":"100.00"},{"$f":"'الملابس-الاستقبال-الموسيقى-الصو'!$C41-'الملابس-الاستقبال-الموسيقى-الصو'!$D41","v":{"v":0,"d":"0.00"}}]
[null,"خطابات شخصية",{"v":0,"d":"0.00"},{"v":0,"d":"0.00"},{"$f":"'الملابس-الاستقبال-الموسيقى-الصو'!$C42-'الملابس-الاستقبال-الموسيقى-الصو'!$D42","v":{"v":0,"d":"0.00"}}]
[null,"دفتر أمنيات الضيوف",{"v":25,"d":"25.00"},{"v":25,"d":"25.00"},{"$f":"'الملابس-الاستقبال-الموسيقى-الصو'!$C43-'الملابس-الاستقبال-الموسيقى-الصو'!$D43","v":{"v":0,"d":"0.00"}}]
[null,"برنامج الحفل",{"v":75,"d":"75.00"},{"v":80,"d":"80.00"},{"$f":"'الملابس-الاستقبال-الموسيقى-الصو'!$C44-'الملابس-الاستقبال-الموسيقى-الصو'!$D44","v":{"v":-5,"d":"-5.00 "}}]
[null,"مناديل مائدة قاعة الاستقبال",{"v":35,"d":"35.00"},{"v":40,"d":"40.00"},{"$f":"'الملابس-الاستقبال-الموسيقى-الصو'!$C45-'الملابس-الاستقبال-الموسيقى-الصو'!$D45","v":{"v":-5,"d":"-5.00 "}}]
[null,"أغلفة لعلب الثقاب",{"v":0,"d":"0.00"},{"v":0,"d":"0.00"},{"$f":"'الملابس-الاستقبال-الموسيقى-الصو'!$C46-'الملابس-الاستقبال-الموسيقى-الصو'!$D46","v":{"v":0,"d":"0.00"}}]
[null,"الكتابة اليدوية",{"v":0,"d":"0.00"},{"v":0,"d":"0.00"},{"$f":"'الملابس-الاستقبال-الموسيقى-الصو'!$C47-'الملابس-الاستقبال-الموسيقى-الصو'!$D47","v":{"v":0,"d":"0.00"}}]
[null,"إجمالي الطباعة/القرطاسية",{"$f":"SUBTOTAL(109,الطباعة[المُقدر])","v":{"v":935,"d":"935.00"}},{"$f":"SUBTOTAL(109,الطباعة[الفعلي])","v":{"v":870,"d":"870.00"}},{"$f":"SUBTOTAL(109,الطباعة[الزائد/الناقص])","v":{"v":65,"d":"65.00"}}]
[]
["توجد تسمية \"التصوير\" في الخلية الموجودة على اليسار.","التصوير"]
["أدخل التفاصيل في جدول \"التصوير\" بدءاً من الخلية الموجودة على اليسار.","الفئة","المُقدر","الفعلي","الزائد/الناقص"]
[null,"الثياب الرسمية",{"v":1300,"d":"1,300.00"},{"v":1300,"d":"1,300.00"},{"$f":"'الملابس-الاستقبال-الموسيقى-الصو'!$C52-'الملابس-الاستقبال-الموسيقى-الصو'!$D52","v":{"v":0,"d":"0.00"}}]
[null,"المطبوعات الإضافية",{"v":25,"d":"25.00"},{"v":25,"d":"25.00"},{"$f":"'الملابس-الاستقبال-الموسيقى-الصو'!$C53-'الملابس-الاستقبال-الموسيقى-الصو'!$D53","v":{"v":0,"d":"0.00"}}]
[null,"ألبومات الصور",{"v":100,"d":"100.00"},{"v":100,"d":"100.00"},{"$f":"'الملابس-الاستقبال-الموسيقى-الصو'!$C54-'الملابس-الاستقبال-الموسيقى-الصو'!$D54","v":{"v":0,"d":"0.00"}}]
[null,"تصوير الفيديو",{"v":200,"d":"200.00"},{"v":150,"d":"150.00"},{"$f":"'الملابس-الاستقبال-الموسيقى-الصو'!$C55-'الملابس-الاستقبال-الموسيقى-الصو'!$D55","v":{"v":50,"d":"50.00"}}]
[null,"إجمالي التصوير",{"$f":"SUBTOTAL(109,التصوير[المُقدر])","v":{"v":1625,"d":"1,625.00"}},{"$f":"SUBTOTAL(109,التصوير[الفعلي])","v":{"v":1575,"d":"1,575.00"}},{"$f":"SUBTOTAL(109,التصوير[الزائد/الناقص])","v":{"v":50,"d":"50.00"}}]

{"sheet":"زينة-زهور-هدايا-تكاليف السفر","index":3,"n_rows":48,"n_cols":5,"rows_kept":48,"merged":[[8,1,8,4],[9,1,9,4],[18,1,18,4],[27,1,27,4],[34,1,34,4]]}
["أدخل التكاليف المقدرة والفعلية لكل فئة في الجداول ذات الصلة في ورقة العمل هذه. يتم احتساب المبلغ الزائد أو الناقص تلقائياً. توجد تسمية \"الديكورات\" في الخلية الموجودة على اليسار. توجد تعليمات مفيدة حول كيفية استخدام ورقة العمل هذه في الخلايا الموجودة في هذا العمود. السهم لأسفل لبدء الاستخدام.","الديكورات*"]
["أدخل تكاليف الديكورات، باستثناء تكاليف الزهور في جدول بدءاً من الخلية الموجودة على اليسار. توجد الإرشادات التالية في الخلية A11.","الفئة","المُقدر","الفعلي","الزائد/الناقص"]
[null,"ديكور المقاعد",{"v":0,"d":"0.00"},{"v":0,"d":"0.00"},{"$f":"'زينة-زهور-هدايا-تكاليف السفر'!$C3-'زينة-زهور-هدايا-تكاليف السفر'!$D3","v":{"v":0,"d":"0.00"}}]
[null,"الزينة",{"v":300,"d":"300.00"},{"v":320,"d":"320.00"},{"$f":"'زينة-زهور-هدايا-تكاليف السفر'!$C4-'زينة-زهور-هدايا-تكاليف السفر'!$D4","v":{"v":-20,"d":"-20.00 "}}]
[null,"الشموع",{"v":100,"d":"100.00"},{"v":75,"d":"75.00"},{"$f":"'زينة-زهور-هدايا-تكاليف السفر'!$C5-'زينة-زهور-هدايا-تكاليف السفر'!$D5","v":{"v":25,"d":"25.00"}}]
[null,"الإضاءة",{"v":100,"d":"100.00"},{"v":75,"d":"75.00"},{"$f":"'زينة-زهور-هدايا-تكاليف السفر'!$C6-'زينة-زهور-هدايا-تكاليف السفر'!$D6","v":{"v":25,"d":"25.00"}}]
[null,"البالونات",{"v":200,"d":"200.00"},{"v":250,"d":"250.00"},{"$f":"'زينة-زهور-هدايا-تكاليف السفر'!$C7-'زينة-زهور-هدايا-تكاليف السفر'!$D7","v":{"v":-50,"d":"-50.00 "}}]
[null,"إجمالي الديكورات",{"$f":"SUBTOTAL(109,الديكورات[المُقدر])","v":{"v":700,"d":"700.00"}},{"$f":"SUBTOTAL(109,الديكورات[الفعلي])","v":{"v":720,"d":"720.00"}},{"$f":"SUBTOTAL(109,الديكورات[الزائد/الناقص])","v":{"v":-20,"d":"-20.00 "}}]
[null,"* تستثني الزهور"]
[]
["توجد تسمية \"الزهور\" في الخلية الموجودة على اليسار.","الزهور"]
["أدخل التفاصيل في جدول \"الزهور\" بدءاً من الخلية الموجودة على اليسار. توجد الإرشادات التالية في الخلية A20.","الفئة","المُقدر","الفعلي","الزائد/الناقص"]
[null,"باقات الزهور",{"v":500,"d":"500.00"},{"v":450,"d":"450.00"},{"$f":"'زينة-زهور-هدايا-تكاليف السفر'!$C13-'زينة-زهور-هدايا-تكاليف السفر'!$D13","v":{"v":50,"d":"50.00"}}]
[null,"زهرة بدلة العريس",{"v":0,"d":"0.00"},{"v":0,"d":"0.00"},{"$f":"'زينة-زهور-هدايا-تكاليف السفر'!$C14-'زينة-زهور-هدايا-تكاليف السفر'!$D14","v":{"v":0,"d":"0.00"}}]
[null,"الزهور الصغيرة للعروس والأصدقاء",{"v":0,"d":"0.00"},{"v":0,"d":"0.00"},{"$f":"'زينة-زهور-هدايا-تكاليف السفر'!$C15-'زينة-زهور-هدايا-تكاليف السفر'!$D15","v":{"v":0,"d":"0.00"}}]
[null,"الحفل",{"v":400,"d":"400.00"},{"v":400,"d":"400.00"},{"$f":"'زينة-زهور-هدايا-تكاليف السفر'!$C16-'زينة-زهور-هدايا-تكاليف السفر'!$D16","v":{"v":0,"d":"0.00"}}]
[null,"حفل الاستقبال",{"v":0,"d":"0.00"},{"v":0,"d":"0.00"},{"$f":"'زينة-زهور-هدايا-تكاليف السفر'!$C17-'زينة-زهور-هدايا-تكاليف السفر'!$D17","v":{"v":0,"d":"0.00"}}]
[null,"إجمالي الزهور",{"$f":"SUBTOTAL(109,الزهور[المُقدر])","v":{"v":900,"d":"900.00"}},{"$f":"SUBTOTAL(109,الزهور[الفعلي])","v":{"v":850,"d":"850.00"}},{"$f":"SUBTOTAL(109,الزهور[الزائد/الناقص])","v":{"v":50,"d":"50.00"}}]
[]
["توجد تسمية \"الهدايا\" في الخلية الموجودة على اليسار.","الهدايا"]
["أدخل التفاصيل في جدول \"الهدايا\" بدءاً من الخلية الموجودة على اليسار. توجد الإرشادات التالية في الخلية A29.","الفئة","المُقدر","الفعلي","الزائد/الناقص"]
[null,"المدعّوين",{"v":1000,"d":"1,000.00"},{"v":400,"d":"400.00"},{"$f":"'زينة-زهور-هدايا-تكاليف السفر'!$C22-'زينة-زهور-هدايا-تكاليف السفر'!$D22","v":{"v":600,"d":"600.00"}}]
[null,"الزوج 1",{"v":150,"d":"150.00"},{"v":200,"d":"200.00"},{"$f":"'زينة-زهور-هدايا-تكاليف السفر'!$C23-'زينة-زهور-هدايا-تكاليف السفر'!$D23","v":{"v":-50,"d":"-50.00 "}}]
[null,"الزوج 2",{"v":150,"d":"150.00"},{"v":200,"d":"200.00"},{"$f":"'زينة-زهور-هدايا-تكاليف السفر'!$C24-'زينة-زهور-هدايا-تكاليف السفر'!$D24","v":{"v":-50,"d":"-50.00 "}}]
[null,"الآباء",{"v":25,"d":"25.00"},{"v":25,"d":"25.00"},{"$f":"'زينة-زهور-هدايا-تكاليف السفر'!$C25-'زينة-زهور-هدايا-تكاليف السفر'!$D25","v":{"v":0,"d":"0.00"}}]
[null,"القراء/المشاركين الآخرين",{"v":20,"d":"20.00"},{"v":250,"d":"250.00"},{"$f":"'زينة-زهور-هدايا-تكاليف السفر'!$C26-'زينة-زهور-هدايا-تكاليف السفر'!$D26","v":{"v":-230,"d":"-230.00 "}}]
[null,"إجمالي الهدايا",{"$f":"SUBTOTAL(109,الهدايا[المُقدر])","v":{"v":1345,"d":"1,345.00"}},{"$f":"SUBTOTAL(109,الهدايا[الفعلي])","v":{"v":1075,"d":"1,075.00"}},{"$f":"SUBTOTAL(109,الهدايا[الزائد/الناقص])","v":{"v":270,"d":"270.00"}}]
[]
["توجد تسمية \"السفر\" أو \"وسائل النقل\" في الخلية الموجودة على اليسار.","السفر/وسائل النقل"]
["أدخل التفاصيل في جدول \"السفر\" بدءاً من الخلية الموجودة على اليسار. توجد الإرشادات التالية في الخلية A36.","الفئة","المُقدر","الفعلي","الزائد/الناقص"]
[null,"سيارات ليموزين/الحافلات",{"v":100,"d":"100.00"},{"v":125,"d":"125.00"},{"$f":"'زينة-زهور-هدايا-تكاليف السفر'!$C31-'زينة-زهور-هدايا-تكاليف السفر'!$D31","v":{"v":-25,"d":"-25.00 "}}]
[null,"موقف السيارات",{"v":0,"d":"0.00"},{"v":40,"d":"40.00"},{"$f":"'زينة-زهور-هدايا-تكاليف السفر'!$C32-'زينة-زهور-هدايا-تكاليف السفر'!$D32","v":{"v":-40,"d":"-40.00 "}}]
[null,"سيارات الأجرة",{"v":0,"d":"0.00"},{"v":0,"d":"0.00"},{"$f":"'زينة-زهور-هدايا-تكاليف السفر'!$C33-'زينة-زهور-هدايا-تكاليف السفر'!$D33","v":{"v":0,"d":"0.00"}}]
[null,"إجمالي السفر/وسائل النقل",{"$f":"SUBTOTAL(109,السفر[المُقدر])","v":{"v":100,"d":"100.00"}},{"$f":"SUBTOTAL(109,السفر[الفعلي])","v":{"v":165,"d":"165.00"}},{"$f":"SUBTOTAL(109,السفر[الزائد/الناقص])","v":{"v":-65,"d":"-65.00 "}}]
[]
["توجد تسمية \"المصروفات الأخرى\" في الخلية الموجودة على اليسار.","المصروفات الأخرى"]
["أدخل التفاصيل في جدول \"المصروفات الأخرى\" بدءاً من الخلية الموجودة على اليسار.","الفئة","المُقدر","الفعلي","الزائد/الناقص"]
[null,"الشيخ/الكاهن",{"v":0,"d":"0.00"},{"v":0,"d":"0.00"},{"$f":"'زينة-زهور-هدايا-تكاليف السفر'!$C38-'زينة-زهور-هدايا-تكاليف السفر'!$D38","v":{"v":0,"d":"0.00"}}]
[null,"رسوم مكان الحفل مسجد/كنيسة",{"v":40,"d":"40.00"},{"v":55,"d":"55.00"},{"$f":"'زينة-زهور-هدايا-تكاليف السفر'!$C39-'زينة-زهور-هدايا-تكاليف السفر'!$D39","v":{"v":-15,"d":"-15.00 "}}]
[null,"منسق حفل الزواج",{"v":0,"d":"0.00"},{"v":0,"d":"0.00"},{"$f":"'زينة-زهور-هدايا-تكاليف السفر'!$C40-'زينة-زهور-هدايا-تكاليف السفر'!$D40","v":{"v":0,"d":"0.00"}}]
[null,"عشاء حفل الزواج",{"v":450,"d":"450.00"},{"v":450,"d":"450.00"},{"$f":"'زينة-زهور-هدايا-تكاليف السفر'!$C41-'زينة-زهور-هدايا-تكاليف السفر'!$D41","v":{"v":0,"d":"0.00"}}]
[null,"حفل الخطبة",{"v":20,"d":"20.00"},{"v":50,"d":"50.00"},{"$f":"'زينة-زهور-هدايا-تكاليف السفر'!$C42-'زينة-زهور-هدايا-تكاليف السفر'!$D42","v":{"v":-30,"d":"-30.00 "}}]
[null,"حفلات هدايا الزواج",{"v":30,"d":"30.00"},{"v":20,"d":"20.00"},{"$f":"'زينة-زهور-هدايا-تكاليف السفر'!$C43-'زينة-زهور-هدايا-تكاليف السفر'!$D43","v":{"v":10,"d":"10.00"}}]
[null,"مواعيد صالون التجميل",{"v":45,"d":"45.00"},{"v":46,"d":"46.00"},{"$f":"'زينة-زهور-هدايا-تكاليف السفر'!$C44-'زينة-زهور-هدايا-تكاليف السفر'!$D44","v":{"v":-1,"d":"-1.00 "}}]
[null,"حفلات أصحاب العريس وأصحاب العروس",{"v":0,"d":"0.00"},{"v":0,"d":"0.00"},{"$f":"'زينة-زهور-هدايا-تكاليف السفر'!$C45-'زينة-زهور-هدايا-تكاليف السفر'!$D45","v":{"v":0,"d":"0.00"}}]
[null,"وجبات خفيفة",{"v":300,"d":"300.00"},{"v":400,"d":"400.00"},{"$f":"'زينة-زهور-هدايا-تكاليف السفر'!$C46-'زينة-زهور-هدايا-تكاليف السفر'!$D46","v":{"v":-100,"d":"-100.00 "}}]
[null,"حجرات الفندق",{"v":0,"d":"0.00"},{"v":0,"d":"0.00"},{"$f":"'زينة-زهور-هدايا-تكاليف السفر'!$C47-'زينة-زهور-هدايا-تكاليف السفر'!$D47","v":{"v":0,"d":"0.00"}}]
[null,"إجمالي المصروفات الأخرى",{"$f":"SUBTOTAL(109,مصروفات_أخرى[المُقدر])","v":{"v":885,"d":"885.00"}},{"$f":"SUBTOTAL(109,مصروفات_أخرى[الفعلي])","v":{"v":1021,"d":"1,021.00"}},{"$f":"SUBTOTAL(109,مصروفات_أخرى[الزائد/الناقص])","v":{"v":-136,"d":"-136.00 "}}]